fUST/lending_fUST_20250523
["ID","MTS","AMOUNT","RATE_DAILY","PERIOD"]
[362082558,1747981850739,-430.0,0.00016986,2]
[362082559,1747981850750,-326.556749,0.00016986,2]
[362082560,1747981850759,-533.6,0.00016986,2]
[362082561,1747981850769,-326.556749,0.00016986,2]
[362082562,1747981850778,-430.0,0.00016986,2]
[362082563,1747981850787,-430.0,0.00016986,2]
[362082564,1747981850798,-172.688586,0.00016986,2]
[362082565,1747981850808,-430.0,0.00016986,2]
[362082566,1747981850817,-430.0,0.00016986,2]
[362082567,1747981850830,-430.0,0.00016986,2]
[362082568,1747981850841,-432.30049304,0.00016986,2]
[362082569,1747981850850,-510.99,0.00016986,2]
[362082570,1747981850859,-430.0,0.00016986,2]
[362082571,1747981850868,-430.0,0.00016986,2]
[362082572,1747981850878,-430.0,0.00016986,2]
[362082573,1747981850888,-508.68398293,0.00016986,2]
[362082574,1747981850898,-430.0,0.00016986,2]
[362082575,1747981850908,-430.0,0.00016986,2]
[362082576,1747981850917,-678.51,0.00016986,2]
[362082577,1747981850926,-597.66,0.00016986,2]
[362082578,1747981850935,-430.0,0.00016986,2]
[362082579,1747981850945,-430.0,0.00016986,2]
[362082580,1747981850954,-170.37185391,0.00016986,2]
[362082581,1747981850964,-430.0,0.00016986,2]
[362082582,1747981850973,-430.0,0.00016986,2]
[362082583,1747981850983,-430.0,0.00016986,2]
[362082584,1747981850992,-408.66051867,0.00016986,2]
[362082585,1747981851004,-623.8,0.00016986,2]
[362082586,1747981851013,-430.0,0.00016986,2]
[362082587,1747981851022,-1803.75,0.00016986,2]
[362082588,1747981851032,-765.9,0.00016986,2]
[362082589,1747981851041,-685.65,0.00016986,2]
[362082590,1747981851050,-305.89976859,0.00016986,2]
[362082591,1747981851060,-430.0,0.00016986,2]
[362082592,1747981851069,-683.62,0.00016986,2]
[362082593,1747981851079,-430.0,0.00016986,2]
[362082594,1747981851088,-430.0,0.00016986,2]
[362082595,1747981851097,-430.0,0.00016986,2]
[362082596,1747981851107,-430.0,0.00016986,2]
[362082597,1747981851116,-415.11524398,0.00016986,2]
[362082598,1747981851126,-430.0,0.00016986,2]
[362082599,1747981851135,-430.0,0.00016986,2]
[362082600,1747981851145,-430.0,0.00016986,2]
[362082601,1747981851154,-430.0,0.00016986,2]
[362082602,1747981851164,-474.75417145,0.00016986,2]
[362082603,1747981851174,-158.95487,0.00016986,2]
[362082604,1747981851183,-430.0,0.00016986,2]
[362082605,1747981851192,-430.0,0.00016986,2]
[362082606,1747981851202,-158.95487,0.00016986,2]
[362082607,1747981851212,-430.0,0.00016986,2]
[362082608,1747981851221,-430.0,0.00016986,2]
[362082609,1747981851231,-420.0,0.00016986,2]
[362082610,1747981851240,-700.82,0.00016986,2]
[362082611,1747981851249,-430.0,0.00016986,2]
[362082612,1747981851258,-2103.33,0.00016986,2]
[362082613,1747981851268,-432.42692126,0.00016986,2]
[362082614,1747981851277,-546.11063442,0.00016986,2]
[362082615,1747981851288,-430.0,0.00016986,2]
[362082616,1747981851298,-1636.96,0.00016986,2]
[362082617,1747981851307,-430.0,0.00016986,2]
[362082618,1747981851317,-430.0,0.00016986,2]
[362082619,1747981851326,-3462.8,0.00017021,2]
[362082620,1747981851335,-1000.0,0.00017021,2]
[362082621,1747981851345,-524.42590895,0.00017021,2]
[362082622,1747981851354,-800.360223,0.0001715,10]
[362082623,1747981851363,-2615.0,0.0001715,10]
[362082624,1747981851372,-2615.0,0.0001715,10]
[362082625,1747981851382,-223.2953714,0.0001715,10]
[362082626,1747981851577,-500.0,0.00016432,2]
[362082627,1747981851586,-500.0,0.00016432,2]
[362082628,1747981851596,-2391.7046286,0.0001715,10]
[362082629,1747981851606,-164.11757278,0.0001715,10]
[362082630,1747981851740,-500.0,0.00016432,2]
[362082631,1747981851750,-500.0,0.00016432,2]
[362082632,1747981851759,-500.0,0.00016432,2]
[362082633,1747981851768,-500.0,0.00016432,2]
[362082634,1747981851778,-500.0,0.00016432,2]
[362082635,1747981851787,-266.31590331,0.00016432,2]
[362082636,1747981851796,-500.0,0.00016432,2]
[362082637,1747981851805,-406.40443236,0.00016438,2]
[362082638,1747981852606,-343.93556764,0.00016438,2]
[362082639,1747981852615,-430.000001,0.00016438,2]
[362082640,1747981852625,-430.0,0.00016438,2]
[362082641,1747981852634,-750.34,0.00016712,2]
[362082642,1747981852644,-430.0,0.00016712,2]
[362082643,1747981852654,-750.34,0.00016986,2]
[362082644,1747981852663,-430.0,0.00016986,2]
[362082645,1747981852678,-2450.88242722,0.0001715,10]
[362082646,1747981852688,-2615.0,0.0001715,10]
[362082647,1747981852698,-2615.0,0.0001715,10]
[362082648,1747981852708,-2615.0,0.0001715,10]
[362082649,1747981852718,-2615.0,0.0001715,10]
[362082650,1747981852729,-2615.0,0.0001715,10]
[362082651,1747981852739,-2615.0,0.0001715,10]
[362082652,1747981852749,-2615.0,0.0001715,10]
[362082653,1747981852760,-2615.0,0.0001715,10]
[362082654,1747981852770,-2615.0,0.0001715,10]
[362082655,1747981852780,-919.71762299,0.0001715,10]
[362082656,1747981852793,-1695.28237701,0.0001715,10]
[362082657,1747981852803,-1322.34061448,0.0001715,10]
[362082658,1747981865013,-430.0,0.00016438,2]
[362082659,1747981865023,-430.0,0.00016438,2]
[362082660,1747981865033,-440.63725763,0.00016438,2]
[362082661,1747981865043,-431.15316699,0.00016438,2]
[362082662,1747981865053,-359.86006578,0.00016438,2]
[362082663,1747981865063,-430.0,0.00016712,2]
[362082664,1747981865073,-430.0,0.00016712,2]
[362082665,1747981865083,-1292.65938552,0.0001715,10]
[362082666,1747981865093,-2615.0,0.0001715,10]
[362082667,1747981865103,-2615.0,0.0001715,10]
[362082668,1747981865113,-2615.0,0.0001715,10]
[362082669,1747981865122,-460.65451427,0.0001715,10]
[362082670,1747981865134,-2154.34548573,0.0001715,10]
[362082671,1747981865144,-2615.0,0.0001715,10]
[362082672,1747981865154,-2615.0,0.0001715,10]
[362082673,1747981865164,-2615.0,0.0001715,10]
[362082674,1747981865174,-2615.0,0.0001715,10]
[362082675,1747981865183,-2615.0,0.0001715,10]
[362082676,1747981865192,-2615.0,0.0001715,10]
[362082677,1747981865202,-2615.0,0.0001715,10]
[362082678,1747981865212,-2615.0,0.0001715,10]
[362082679,1747981865221,-2614.9,0.0001715,10]
[362082680,1747981865231,-369.84832912,0.00017259,2]
[362082681,1747981865242,-430.0,0.0001726,2]
[362082682,1747981865251,-430.0,0.0001726,2]
[362082683,1747981865261,-430.0,0.0001726,2]
[362082684,1747981865271,-430.0,0.0001726,2]
[362082685,1747981865281,-380.66333255,0.0001726,2]
[362082686,1747981865291,-430.0,0.0001726,2]
[362082687,1747981865300,-440.0,0.0001726,2]
[362082688,1747981865310,-430.0,0.0001726,2]
[362082689,1747981865319,-151.0,0.0001726,2]
[362082690,1747981865329,-430.0,0.0001726,2]
[362082691,1747981865338,-430.0,0.0001726,2]
[362082692,1747981865348,-251.55093842,0.0001726,2]
[362082693,1747981865357,-430.0,0.0001726,2]
[362082694,1747981865367,-430.0,0.0001726,2]
[362082695,1747981865377,-430.0,0.0001726,2]
[362082696,1747981865386,-504.07107776,0.0001726,2]
[362082697,1747981865395,-1191.878716,0.0001726,2]
[362082698,1747981865405,-1191.878716,0.0001726,2]
[362082699,1747981865414,-430.0,0.0001726,2]
[362082700,1747981865423,-430.0,0.0001726,2]
[362082701,1747981865433,-430.0,0.0001726,2]
[362082702,1747981865442,-430.0,0.0001726,2]
[362082703,1747981865452,-430.0,0.0001726,2]
[362082704,1747981865463,-430.0,0.0001726,2]
[362082705,1747981865472,-430.0,0.0001726,2]
[362082706,1747981865481,-193.53306588,0.0001726,2]
[362082707,1747981865491,-430.0,0.0001726,2]
[362082708,1747981865500,-430.0,0.0001726,2]
[362082709,1747981865510,-430.0,0.0001726,2]
[362082710,1747981865521,-430.0,0.0001726,2]
[362082711,1747981865531,-430.0,0.0001726,2]
[362082712,1747981865541,-430.0,0.0001726,2]
[362082713,1747981865551,-430.0,0.0001726,2]
[362082714,1747981865561,-430.0,0.0001726,2]
[362082715,1747981865570,-430.0,0.0001726,2]
[362082716,1747981865580,-430.0,0.0001726,2]
[362082717,1747981865590,-430.0,0.0001726,2]
[362082718,1747981865600,-430.0,0.0001726,2]
[362082719,1747981865609,-440.8,0.0001726,2]
[362082720,1747981865619,-430.0,0.0001726,2]
[362082721,1747981865628,-430.0,0.0001726,2]
[362082722,1747981865637,-153.945855,0.0001726,2]
[362082723,1747981865647,-430.0,0.0001726,2]
[362082724,1747981865656,-430.0,0.0001726,2]
[362082725,1747981865666,-153.945855,0.0001726,2]
[362082726,1747981865675,-430.0,0.0001726,2]
[362082727,1747981865685,-430.0,0.0001726,2]
[362082728,1747981865695,-430.0,0.0001726,2]
[362082729,1747981865704,-400.0,0.0001726,2]
[362082730,1747981865714,-430.0,0.0001726,2]
[362082731,1747981865723,-430.0,0.0001726,2]
[362082732,1747981865732,-533.6,0.0001726,2]
[362082733,1747981865742,-430.0,0.0001726,2]
[362082734,1747981865752,-430.0,0.0001726,2]
[362082735,1747981865761,-430.0,0.0001726,2]
[362082736,1747981865772,-430.0,0.0001726,2]
[362082737,1747981865782,-430.0,0.0001726,2]
[362082738,1747981865791,-510.99,0.0001726,2]
[362082739,1747981865802,-430.0,0.0001726,2]
[362082740,1747981865811,-430.0,0.0001726,2]
[362082741,1747981865821,-430.0,0.0001726,2]
[362082742,1747981865831,-430.0,0.0001726,2]
[362082743,1747981865843,-430.0,0.0001726,2]
[362082744,1747981865852,-678.51,0.0001726,2]
[362082745,1747981865863,-597.66,0.0001726,2]
[362082746,1747981865872,-430.0,0.0001726,2]
[362082747,1747981865882,-430.0,0.0001726,2]
[362082748,1747981865892,-430.0,0.0001726,2]
[362082749,1747981865902,-430.0,0.0001726,2]
[362082750,1747981865911,-430.0,0.0001726,2]
[362082751,1747981865922,-623.8,0.0001726,2]
[362082752,1747981865932,-430.0,0.0001726,2]
[362082753,1747981865941,-1803.75,0.0001726,2]
[362082754,1747981865951,-765.9,0.0001726,2]
[362082755,1747981865960,-685.65,0.0001726,2]
[362082756,1747981865970,-460.0,0.0001726,2]
[362082757,1747981865979,-683.62,0.0001726,2]
[362082758,1747981865988,-430.0,0.0001726,2]
[362082759,1747981865999,-227.23591202,0.0001726,2]
[362082760,1747981866009,-430.0,0.0001726,2]
[362082761,1747981866019,-430.0,0.0001726,2]
[362082762,1747981866028,-430.0,0.0001726,2]
[362082763,1747981866038,-528.11,0.0001726,2]
[362082764,1747981866048,-430.0,0.0001726,2]
[362082765,1747981866057,-430.0,0.0001726,2]
[362082766,1747981866068,-430.0,0.0001726,2]
[362082767,1747981866079,-430.0,0.0001726,2]
[362082768,1747981866089,-446.59387786,0.0001726,2]
[362082769,1747981866099,-430.0,0.0001726,2]
[362082770,1747981866109,-700.82,0.0001726,2]
[362082771,1747981866118,-430.0,0.0001726,2]
[362082772,1747981866128,-2103.33,0.0001726,2]
[362082773,1747981866138,-440.0,0.0001726,2]
[362082774,1747981866148,-1636.96,0.0001726,2]
[362082775,1747981866158,-430.0,0.0001726,2]
[362082776,1747981866167,-470.0,0.0001726,2]
[362082777,1747981866178,-750.34,0.0001726,2]
[362082778,1747981866187,-430.0,0.0001726,2]
[362082779,1747981866197,-800.360223,0.0001729,15]
[362082780,1747981866207,-800.360223,0.0001742,6]
[362082781,1747981866217,-800.360223,0.000175,3]
[362082782,1747981866227,-800.360223,0.000175,2]
[362082783,1747981866237,-800.360223,0.000175,30]
[362082784,1747981866247,-800.360223,0.000175,7]
[362082785,1747981866257,-158.39,0.00017534,2]
[362082786,1747981866268,-430.0,0.00017534,2]
[362082787,1747981866278,-430.0,0.00017534,2]
[362082788,1747981866296,-430.0,0.00017534,2]
[362082789,1747981866306,-470.0,0.00017534,2]
[362082790,1747981866316,-470.0,0.00017534,2]
[362082791,1747981866325,-430.0,0.00017534,2]
[362082792,1747981866335,-430.0,0.00017534,2]
[362082793,1747981866345,-430.0,0.00017534,2]
[362082794,1747981866354,-430.0,0.00017534,2]
[362082795,1747981866364,-241.66355408,0.00017534,2]
[362082796,1747981866373,-430.0,0.00017534,2]
[362082797,1747981866382,-422.33,0.00017534,2]
[362082798,1747981866392,-430.0,0.00017534,2]
[362082799,1747981866401,-430.0,0.00017534,2]
[362082800,1747981866411,-470.0,0.00017534,2]
[362082801,1747981866420,-430.0,0.00017534,2]
[362082802,1747981866429,-430.0,0.00017534,2]
[362082803,1747981866439,-430.0,0.00017534,2]
[362082804,1747981866448,-430.0,0.00017534,2]
[362082805,1747981866458,-430.0,0.00017534,2]
[362082806,1747981866468,-430.0,0.00017534,2]
[362082807,1747981866477,-430.0,0.00017534,2]
[362082808,1747981866487,-430.0,0.00017534,2]
[362082809,1747981866496,-430.0,0.00017534,2]
[362082810,1747981866506,-430.0,0.00017534,2]
[362082811,1747981866515,-259.99761024,0.00017534,2]
[362082812,1747981866524,-430.0,0.00017534,2]
[362082813,1747981866534,-430.0,0.00017534,2]
[362082814,1747981866543,-430.0,0.00017534,2]
[362082815,1747981866553,-440.8,0.00017534,2]
[362082816,1747981866563,-365.01127206,0.00017534,2]
[362082817,1747981866573,-430.0,0.00017534,2]
[362082818,1747981866583,-430.0,0.00017534,2]
[362082819,1747981866592,-430.0,0.00017534,2]
[362082820,1747981866602,-430.0,0.00017534,2]
[362082821,1747981866612,-430.0,0.00017534,2]
[362082822,1747981866622,-163.65840719,0.00017534,2]
[362082823,1747981866632,-430.0,0.00017534,2]
[362082824,1747981866641,-430.0,0.00017534,2]
[362082825,1747981866651,-533.6,0.00017534,2]
[362082826,1747981866661,-430.0,0.00017534,2]
[362082827,1747981866671,-430.0,0.00017534,2]
[362082828,1747981866681,-430.0,0.00017534,2]
[362082829,1747981866691,-430.0,0.00017534,2]
[362082830,1747981866700,-430.0,0.00017534,2]
[362082831,1747981866709,-510.99,0.00017534,2]
[362082832,1747981866719,-430.0,0.00017534,2]
[362082833,1747981866728,-430.0,0.00017534,2]
[362082834,1747981866738,-430.0,0.00017534,2]
[362082835,1747981866747,-430.0,0.00017534,2]
[362082836,1747981866757,-430.0,0.00017534,2]
[362082837,1747981866768,-678.51,0.00017534,2]
[362082838,1747981866778,-597.66,0.00017534,2]
[362082839,1747981866788,-284.85557736,0.00017534,2]
[362082840,1747981866797,-430.0,0.00017534,2]
[362082841,1747981866807,-430.0,0.00017534,2]
[362082842,1747981866816,-430.0,0.00017534,2]
[362082843,1747981866826,-430.0,0.00017534,2]
[362082844,1747981866836,-623.8,0.00017534,2]
[362082845,1747981866848,-430.0,0.00017534,2]
[362082846,1747981866858,-1803.75,0.00017534,2]
[362082847,1747981866868,-765.9,0.00017534,2]
[362082848,1747981866878,-685.65,0.00017534,2]
[362082849,1747981866888,-683.62,0.00017534,2]
[362082850,1747981866897,-430.0,0.00017534,2]
[362082851,1747981866906,-151.0,0.00017534,2]
[362082852,1747981866917,-430.0,0.00017534,2]
[362082853,1747981866927,-430.0,0.00017534,2]
[362082854,1747981866937,-430.0,0.00017534,2]
[362082855,1747981866947,-430.0,0.00017534,2]
[362082856,1747981866957,-430.0,0.00017534,2]
[362082857,1747981866966,-430.0,0.00017534,2]
[362082858,1747981866976,-430.0,0.00017534,2]
[362082859,1747981866985,-430.0,0.00017534,2]
[362082860,1747981866995,-700.82,0.00017534,2]
[362082861,1747981867006,-430.0,0.00017534,2]
[362082862,1747981867018,-2103.33,0.00017534,2]
[362082863,1747981867028,-1636.96,0.00017534,2]
[362082864,1747981867038,-430.0,0.00017534,2]
[362082865,1747981867047,-750.34,0.00017534,2]
[362082866,1747981867057,-430.0,0.00017534,2]
[362082867,1747981867066,-507.09304381,0.00017568,2]
[362082868,1747981867077,-2066.04548193,0.000176,2]
[362082869,1747981867087,-568.7533492,0.00017655,2]
[362082870,1747981867096,-2171.02,0.00017793,3]
[362082871,1747981867106,-1085.5,0.00017793,3]
[362082872,1747981867116,-542.76,0.00017793,3]
[362082873,1747981867126,-430.0,0.00017808,2]
[362082874,1747981867136,-430.0,0.00017808,2]
[362082875,1747981867145,-430.0,0.00017808,2]
[362082876,1747981867155,-430.0,0.00017808,2]
[362082877,1747981867165,-430.0,0.00017808,2]
[362082878,1747981867175,-430.0,0.00017808,2]
[362082879,1747981867185,-430.0,0.00017808,2]
[362082880,1747981867195,-430.0,0.00017808,2]
[362082881,1747981867204,-430.0,0.00017808,2]
[362082882,1747981867214,-151.0,0.00017808,2]
[362082883,1747981867224,-430.0,0.00017808,2]
[362082884,1747981867234,-430.0,0.00017808,2]
[362082885,1747981867244,-430.0,0.00017808,2]
[362082886,1747981867253,-430.0,0.00017808,2]
[362082887,1747981867266,-498.098337,0.00017808,2]
[362082888,1747981867276,-498.098337,0.00017808,2]
[362082889,1747981867285,-450.0,0.00017808,2]
[362082890,1747981867295,-430.0,0.00017808,2]
[362082891,1747981867304,-430.0,0.00017808,2]
[362082892,1747981867313,-430.0,0.00017808,2]
[362082893,1747981867323,-430.0,0.00017808,2]
[362082894,1747981867332,-430.0,0.00017808,2]
[362082895,1747981867342,-430.0,0.00017808,2]
[362082896,1747981867352,-151.0,0.00017808,2]
[362082897,1747981867361,-430.0,0.00017808,2]
[362082898,1747981867370,-312.10019713,0.00017808,2]
[362082899,1747981867379,-430.0,0.00017808,2]
[362082900,1747981867389,-440.8,0.00017808,2]
[362082901,1747981867399,-430.0,0.00017808,2]
[362082902,1747981867408,-430.0,0.00017808,2]
[362082903,1747981867418,-430.0,0.00017808,2]
[362082904,1747981867428,-430.0,0.00017808,2]
[362082905,1747981867439,-430.0,0.00017808,2]
[362082906,1747981867448,-430.0,0.00017808,2]
[362082907,1747981867458,-430.0,0.00017808,2]
[362082908,1747981867468,-533.6,0.00017808,2]
[362082909,1747981867478,-430.0,0.00017808,2]
[362082910,1747981867487,-430.0,0.00017808,2]
[362082911,1747981867497,-483.38274605,0.00017808,2]
[362082912,1747981867506,-430.0,0.00017808,2]
[362082913,1747981867516,-430.0,0.00017808,2]
[362082914,1747981867526,-510.99,0.00017808,2]
[362082915,1747981867535,-430.0,0.00017808,2]
[362082916,1747981867545,-430.0,0.00017808,2]
[362082917,1747981867555,-430.0,0.00017808,2]
[362082918,1747981867565,-430.0,0.00017808,2]
[362082919,1747981867575,-430.0,0.00017808,2]
[362082920,1747981867585,-678.51,0.00017808,2]
[362082921,1747981867594,-597.66,0.00017808,2]
[362082922,1747981867604,-430.0,0.00017808,2]
[362082923,1747981867613,-430.0,0.00017808,2]
[362082924,1747981867623,-430.0,0.00017808,2]
[362082925,1747981867636,-211.18412621,0.00017808,2]
[362082926,1747981867648,-623.8,0.00017808,2]
[362082927,1747981867658,-430.0,0.00017808,2]
[362082928,1747981867668,-1803.75,0.00017808,2]
[362082929,1747981867678,-765.9,0.00017808,2]
[362082930,1747981867687,-685.65,0.00017808,2]
[362082931,1747981867697,-683.62,0.00017808,2]
[362082932,1747981867706,-430.0,0.00017808,2]
[362082933,1747981867716,-430.0,0.00017808,2]
[362082934,1747981867726,-430.0,0.00017808,2]
[362082935,1747981867736,-430.0,0.00017808,2]
[362082936,1747981867746,-430.0,0.00017808,2]
[362082937,1747981867756,-430.0,0.00017808,2]
[362082938,1747981867767,-381.30827005,0.00017808,2]
[362082939,1747981867778,-430.0,0.00017808,2]
[362082940,1747981867787,-430.0,0.00017808,2]
[362082941,1747981867796,-700.82,0.00017808,2]
[362082942,1747981867807,-430.0,0.00017808,2]
[362082943,1747981867817,-2103.33,0.00017808,2]
[362082944,1747981867827,-1636.96,0.00017808,2]
[362082945,1747981867992,-299.53,0.00017808,2]
[362082946,1747981868004,-750.34,0.00017808,2]
[362082947,1747981868014,-430.0,0.00017808,2]
[362082948,1747981868026,-800.360223,0.00017889,2]
[362082949,1747981868036,-420.0,0.00017947,2]
[362082950,1747981868046,-151.0,0.00017948,2]
[362082951,1747981868056,-151.0,0.00017948,2]
[362082952,1747981868066,-292.182909,0.00017948,2]
[362082953,1747981868076,-326.556749,0.00017948,2]
[362082954,1747981868085,-326.556749,0.00017948,2]
[362082955,1747981868095,-800.360223,0.00017951,9]
[362082956,1747981868105,-420.0,0.00017958,2]
[362082957,1747981868114,-206216.15033742,0.0001797,10]
[362082959,1747982046666,5000.0,0.00016,2]
[362082960,1747982063822,5000.0,0.00016,2]
[362082961,1747982071689,15551.4704493,0.00015514,2]
[362082962,1747982094633,313.24743095,0.00016,2]
[362082963,1747982185333,788.042396,0.00015505,2]
[362082964,1747982494957,79202.38509361,0.00016,3]
[362082965,1747982552682,20301.40016141,0.00015435,2]
[362082966,1747982552705,4598.59983859,0.00015435,2]
[362083023,1747983032215,-160.0,0.00016264,2]
[362083024,1747983032225,-438.16471941,0.00016338,2]
[362083025,1747983032272,-424.64309625,0.00016338,2]
[362083026,1747983032283,-2924.9277737,0.0001634,2]
[362083027,1747983032294,-300.0,0.00016399,2]
[362083028,1747983032304,-300.0,0.00016399,2]
[362083029,1747983032317,-300.0,0.00016399,2]
[362083030,1747983032327,-11064.49233631,0.000164,2]
[362083081,1747983038828,-4209.36835794,0.000164,2]
[362083134,1747983040461,-3810.74067358,0.000164,2]
[362083156,1747983043345,-3208.10345948,0.000164,2]
[362083157,1747983043356,-136.05644477,0.00016432,2]
[362083159,1747983043633,-460.44531479,0.00016432,2]
[362083160,1747983043643,-230.18204647,0.00016432,2]
[362083161,1747983043656,-269.81795353,0.00016432,2]
[362083162,1747983043666,-9.36652987,0.00016432,2]
[362083180,1747983046209,-609.84418837,0.00016432,2]
[362083181,1747983046223,-500.0,0.00016432,2]
[362083182,1747983046232,-500.89995189,0.00016432,2]
[362083183,1747983046242,-729.91781369,0.00016432,2]
[362083184,1747983046252,-643.06661699,0.00016432,2]
[362083185,1747983046262,-500.0,0.00016432,2]
[362083186,1747983046272,-500.0,0.00016432,2]
[362083187,1747983046282,-729.91781369,0.00016432,2]
[362083188,1747983046292,-500.0,0.00016432,2]
[362083189,1747983046302,-275.18966371,0.00016432,2]
[362083190,1747983046312,-500.0,0.00016432,2]
[362083191,1747983046321,-500.0,0.00016432,2]
[362083192,1747983046331,-500.0,0.00016432,2]
[362083193,1747983046340,-729.91781369,0.00016432,2]
[362083194,1747983046349,-500.0,0.00016432,2]
[362083195,1747983046359,-392.16452115,0.00016432,2]
[362083196,1747983046369,-500.0,0.00016432,2]
[362083197,1747983046378,-729.91781369,0.00016432,2]
[362083198,1747983046387,-500.0,0.00016432,2]
[362083199,1747983046397,-500.0,0.00016432,2]
[362083200,1747983046407,-442.55538374,0.00016432,2]
[362083201,1747983046416,-500.0,0.00016432,2]
[362083202,1747983046426,-500.0,0.00016432,2]
[362083203,1747983046436,-500.0,0.00016432,2]
[362083204,1747983046446,-729.91781369,0.00016432,2]
[362083205,1747983046456,-500.0,0.00016432,2]
[362083206,1747983046466,-729.91781369,0.00016432,2]
[362083207,1747983046475,-286.34699339,0.00016432,2]
[362083208,1747983046485,-729.91781369,0.00016432,2]
[362083209,1747983046494,-125.04074168,0.00016432,2]
[362083210,1747983046507,-604.87707201,0.00016432,2]
[362083211,1747983046516,-500.0,0.00016432,2]
[362083212,1747983046525,-729.91781369,0.00016432,2]
[362083213,1747983046534,-729.91781369,0.00016432,2]
[362083214,1747983046543,-611.74290882,0.00016432,2]
[362083215,1747983046559,-118.17490487,0.00016432,2]
[362083216,1747983046570,-318.55509513,0.00016432,2]
[362083217,1747983046582,-411.36271856,0.00016432,2]
[362083218,1747983046592,-729.91781369,0.00016432,2]
[362083219,1747983046602,-729.91781369,0.00016432,2]
[362083220,1747983046612,-729.91781369,0.00016432,2]
[362083221,1747983046622,-729.91781369,0.00016432,2]
[362083222,1747983046632,-729.91781369,0.00016432,2]
[362083223,1747983046642,-729.91781369,0.00016432,2]
[362083224,1747983046652,-729.91781369,0.00016432,2]
[362083225,1747983046662,-729.91781369,0.00016432,2]
[362083226,1747983046672,-729.91781369,0.00016432,2]
[362083227,1747983046682,-729.91781369,0.00016432,2]
[362083228,1747983046691,-729.91781369,0.00016432,2]
[362083229,1747983046701,-729.91781369,0.00016432,2]
[362083230,1747983046711,-729.91781369,0.00016432,2]
[362083231,1747983046722,-729.91781369,0.00016432,2]
[362083232,1747983046732,-729.91781369,0.00016432,2]
[362083233,1747983046741,-729.91781369,0.00016432,2]
[362083234,1747983046751,-729.91781369,0.00016432,2]
[362083235,1747983046760,-729.91781369,0.00016432,2]
[362083236,1747983046771,-729.91781369,0.00016432,2]
[362083237,1747983046781,-729.91781369,0.00016432,2]
[362083238,1747983046790,-729.91781369,0.00016432,2]
[362083239,1747983046799,-729.91781369,0.00016432,2]
[362083240,1747983046809,-729.91781369,0.00016432,2]
[362083241,1747983046819,-729.91781369,0.00016432,2]
[362083242,1747983046829,-729.91781369,0.00016432,2]
[362083243,1747983046838,-729.91781369,0.00016432,2]
[362083244,1747983046848,-729.91781369,0.00016432,2]
[362083245,1747983046858,-729.91781369,0.00016432,2]
[362083246,1747983046867,-729.91781369,0.00016432,2]
[362083247,1747983046876,-729.91781369,0.00016432,2]
[362083248,1747983046885,-729.91781369,0.00016432,2]
[362083249,1747983046895,-729.91781369,0.00016432,2]
[362083250,1747983046904,-729.91781369,0.00016432,2]
[362083251,1747983046914,-729.91781369,0.00016432,2]
[362083252,1747983046924,-729.91781369,0.00016432,2]
[362083253,1747983046933,-729.91781369,0.00016432,2]
[362083254,1747983046942,-729.91781369,0.00016432,2]
[362083255,1747983046951,-729.91781369,0.00016432,2]